[Event "Live Chess"]
[Site "Chess.com"]
[Date "2023.05.21"]
[Round "-"]
[White "Tushinskiy"]
[Black "Pablo_dmp"]
[Result "1-0"]
[WhiteElo "2214"]
[BlackElo "1842"]
[TimeControl "300"]
[EndTime "21:26:01 PDT"]
[Termination "Tushinskiy won by checkmate"]

1. d4 {[%clk 0:04:58]} 1... c5 {[%clk 0:04:58]} 2. c3 {[%clk 0:04:57.9]} 2...
Nf6 {[%clk 0:04:56]} 3. Nf3 {[%clk 0:04:53.3]} 3... d5 {[%clk 0:04:51.7]} 4. Bf4
{[%clk 0:04:51.5]} 4... Nc6 {[%clk 0:04:49.7]} 5. e3 {[%clk 0:04:50.1]} 5... Bf5
{[%clk 0:04:47.3]} 6. Bd3 {[%clk 0:04:48.8]} 6... Bxd3 {[%clk 0:04:44.1]} 7.
Qxd3 {[%clk 0:04:48.7]} 7... cxd4 {[%clk 0:04:43.6]} 8. exd4 {[%clk 0:04:47.6]}
8... e6 {[%clk 0:04:42.1]} 9. Nbd2 {[%clk 0:04:46.9]} 9... Bd6 {[%clk
0:04:40.6]} 10. Bg3 {[%clk 0:04:46.2]} 10... O-O {[%clk 0:04:38.8]} 11. O-O
{[%clk 0:04:44.6]} 11... Ne7 {[%clk 0:04:34.9]} 12. Rfe1 {[%clk 0:04:42.8]}
12... Nf5 {[%clk 0:04:33.2]} 13. Ne5 {[%clk 0:04:41.5]} 13... Nxg3 {[%clk
0:04:31.5]} 14. hxg3 {[%clk 0:04:40.4]} 14... Qc7 {[%clk 0:04:26]} 15. f4 {[%clk
0:04:37]} 15... Qb6 {[%clk 0:04:14.3]} 16. Rab1 {[%clk 0:04:35.1]} 16... h5
{[%clk 0:03:59.3]} 17. Nef3 {[%clk 0:04:25.3]} 17... Qc7 {[%clk 0:03:47.3]} 18.
Ng5 {[%clk 0:04:21.8]} 18... g6 {[%clk 0:03:44.8]} 19. Ndf3 {[%clk 0:04:18.8]}
19... Bxf4 {[%clk 0:03:35.3]} 20. gxf4 {[%clk 0:04:18.7]} 20... Qxf4 {[%clk
0:03:34.3]} 21. Rf1 {[%clk 0:04:11.6]} 21... Ng4 {[%clk 0:03:29.5]} 22. Rbe1
{[%clk 0:04:07.4]} 22... Qg3 {[%clk 0:03:26.1]} 23. Nxe6 {[%clk 0:04:02.9]}
23... fxe6 {[%clk 0:03:05.9]} 24. Qxg6+ {[%clk 0:04:01.1]} 24... Kh8 {[%clk
0:03:04.9]} 25. Qxh5+ {[%clk 0:03:59.9]} 25... Kg8 {[%clk 0:03:03.9]} 26. Qg6+
{[%clk 0:03:51.6]} 26... Kh8 {[%clk 0:03:02.2]} 27. Rxe6 {[%clk 0:03:47.4]}
27... Rxf3 {[%clk 0:02:53.5]} 28. Qh5+ {[%clk 0:03:44.6]} 28... Kg8 {[%clk
0:02:40]} 29. Rg6+ {[%clk 0:03:40]} 29... Kf7 {[%clk 0:02:31.6]} 30. Qh7+ {[%clk
0:03:34.9]} 30... Kf8 {[%clk 0:02:27.8]} 31. Rg8# {[%clk 0:03:32.3]} 1-0

[Event "Live Chess"]
[Site "Chess.com"]
[Date "2023.05.21"]
[Round "-"]
[White "Biranidun"]
[Black "matt1979"]
[Result "1-0"]
[WhiteElo "2536"]
[BlackElo "1493"]
[TimeControl "300"]
[EndTime "21:26:40 PDT"]
[Termination "Biranidun won by resignation"]

1. e4 {[%clk 0:04:59.1]} 1... d6 {[%clk 0:04:57.7]} 2. d4 {[%clk 0:04:58.1]}
2... Nf6 {[%clk 0:04:54.4]} 3. Nc3 {[%clk 0:04:57.6]} 3... e5 {[%clk 0:04:52.5]}
4. Nf3 {[%clk 0:04:56.7]} 4... Nbd7 {[%clk 0:04:50.9]} 5. Bc4 {[%clk 0:04:56]}
5... Be7 {[%clk 0:04:47.6]} 6. O-O {[%clk 0:04:55.1]} 6... O-O {[%clk 0:04:46]}
7. h3 {[%clk 0:04:54.5]} 7... c6 {[%clk 0:04:43.9]} 8. a4 {[%clk 0:04:53.5]}
8... Qc7 {[%clk 0:04:41.3]} 9. Re1 {[%clk 0:04:53]} 9... b6 {[%clk 0:04:39.9]}
10. Be3 {[%clk 0:04:52.5]} 10... a6 {[%clk 0:04:38.3]} 11. Ba2 {[%clk 0:04:52]}
11... Bb7 {[%clk 0:04:34.8]} 12. Nh4 {[%clk 0:04:51.4]} 12... d5 {[%clk
0:04:15.3]} 13. Nf5 {[%clk 0:04:48.3]} 13... Bb4 {[%clk 0:04:12.1]} 14. dxe5
{[%clk 0:04:43.2]} 14... Nxe5 {[%clk 0:04:10.2]} 15. exd5 {[%clk 0:04:37.3]}
15... Nxd5 {[%clk 0:04:01.5]} 16. Nxd5 {[%clk 0:04:32.4]} 16... cxd5 {[%clk
0:03:54.4]} 17. c3 {[%clk 0:04:31.4]} 17... Bc5 {[%clk 0:03:47.1]} 18. Bf4
{[%clk 0:04:24.9]} 18... f6 {[%clk 0:03:31.5]} 19. Bxd5+ {[%clk 0:04:21.5]}
19... Bxd5 {[%clk 0:03:26.1]} 20. Qxd5+ {[%clk 0:04:21.4]} 20... Kh8 {[%clk
0:03:24.9]} 21. Bxe5 {[%clk 0:04:09.3]} 21... fxe5 {[%clk 0:03:22.7]} 22. Qxe5
{[%clk 0:04:09.2]} 22... Qf7 {[%clk 0:03:13.9]} 23. g4 {[%clk 0:03:23.6]} 23...
Kg8 {[%clk 0:03:07.2]} 24. b4 {[%clk 0:03:14.2]} 24... Bxf2+ {[%clk 0:02:55.2]}
25. Kxf2 {[%clk 0:03:12.9]} 25... Rad8 {[%clk 0:02:45.6]} 26. Kg3 {[%clk
0:03:05.1]} 26... Rd3+ {[%clk 0:02:41.2]} 27. Re3 {[%clk 0:03:03.8]} 27... Rxe3+
{[%clk 0:02:31.6]} 28. Qxe3 {[%clk 0:03:03.7]} 28... Qc7+ {[%clk 0:02:28.6]} 29.
Kg2 {[%clk 0:03:02.2]} 29... Qc6+ {[%clk 0:02:26.3]} 30. Kg1 {[%clk 0:02:59.4]}
30... Re8 {[%clk 0:02:17.8]} 31. Ne7+ {[%clk 0:02:57.1]} 31... Rxe7 {[%clk
0:02:16.2]} 32. Qxe7 {[%clk 0:02:57]} 1-0

[Event "Live Chess"]
[Site "Chess.com"]
[Date "2023.05.21"]
[Round "-"]
[White "CocheseUK"]
[Black "Conradical12"]
[Result "0-1"]
[WhiteElo "1034"]
[BlackElo "1650"]
[TimeControl "300"]
[EndTime "21:26:55 PDT"]
[Termination "Conradical12 won on time"]

1. e4 {[%clk 0:04:58.1]} 1... e5 {[%clk 0:04:58.8]} 2. Nf3 {[%clk 0:04:55.6]}
2... Nc6 {[%clk 0:04:58.2]} 3. Bb5 {[%clk 0:04:50.9]} 3... Nf6 {[%clk
0:04:55.8]} 4. Nc3 {[%clk 0:04:46.1]} 4... Bb4 {[%clk 0:04:52.6]} 5. d3 {[%clk
0:04:41.5]} 5... d6 {[%clk 0:04:50.6]} 6. a3 {[%clk 0:04:39.3]} 6... Ba5 {[%clk
0:04:46.9]} 7. O-O {[%clk 0:04:37.8]} 7... a6 {[%clk 0:04:45.3]} 8. Ba4 {[%clk
0:04:32.9]} 8... O-O {[%clk 0:04:43.3]} 9. Nd5 {[%clk 0:04:21.2]} 9... Nxd5
{[%clk 0:04:40.9]} 10. exd5 {[%clk 0:04:19.8]} 10... Ne7 {[%clk 0:04:39.9]} 11.
Bb3 {[%clk 0:04:16]} 11... b5 {[%clk 0:04:38.1]} 12. c4 {[%clk 0:04:07.8]} 12...
Bb7 {[%clk 0:04:33.9]} 13. Bg5 {[%clk 0:03:53.4]} 13... f6 {[%clk 0:04:31.1]}
14. Bh4 {[%clk 0:03:50.8]} 14... Nf5 {[%clk 0:04:29.6]} 15. Ba2 {[%clk
0:03:34.4]} 15... Kh8 {[%clk 0:04:16.4]} 16. b4 {[%clk 0:03:23.1]} 16... Bb6
{[%clk 0:04:12.7]} 17. g4 {[%clk 0:02:59.6]} 17... Nxh4 {[%clk 0:04:04]} 18.
Nxh4 {[%clk 0:02:57.7]} 18... Bd4 {[%clk 0:04:03.4]} 19. Rb1 {[%clk 0:02:48.9]}
19... c6 {[%clk 0:03:52.3]} 20. Nf3 {[%clk 0:02:29.7]} 20... cxd5 {[%clk
0:03:22.7]} 21. Nxd4 {[%clk 0:02:14]} 21... exd4 {[%clk 0:03:20.2]} 22. cxd5
{[%clk 0:02:05.8]} 22... Rc8 {[%clk 0:03:10.9]} 23. Rc1 {[%clk 0:02:02.2]} 23...
Rc3 {[%clk 0:03:08]} 24. Rxc3 {[%clk 0:01:55.9]} 24... dxc3 {[%clk 0:03:06.7]}
25. Qc2 {[%clk 0:01:53.5]} 25... Qc7 {[%clk 0:03:05]} 26. d4 {[%clk 0:01:47.1]}
26... Qd7 {[%clk 0:02:55.5]} 27. f3 {[%clk 0:01:41.7]} 27... Rc8 {[%clk
0:02:49.3]} 28. Rc1 {[%clk 0:01:35.9]} 28... Qf7 {[%clk 0:02:43.1]} 29. Qd3
{[%clk 0:01:31.2]} 29... Bxd5 {[%clk 0:02:28]} 30. Bb1 {[%clk 0:01:22.7]} 30...
g6 {[%clk 0:02:14.3]} 31. Kf2 {[%clk 0:01:15.6]} 31... Ba2 {[%clk 0:01:52.5]}
32. Bc2 {[%clk 0:00:52.8]} 32... d5 {[%clk 0:01:30.4]} 33. Bb1 {[%clk
0:00:23.8]} 33... Bxb1 {[%clk 0:01:24.3]} 34. Qxb1 {[%clk 0:00:22.6]} 34... Qc7
{[%clk 0:01:21.6]} 35. Qc2 {[%clk 0:00:15.2]} 35... Qxh2+ {[%clk 0:01:19.1]} 36.
Ke3 {[%clk 0:00:08.8]} 36... Qh6+ {[%clk 0:01:11.1]} 37. Kf2 {[%clk 0:00:06.7]}
37... Qf4 {[%clk 0:01:04.1]} 38. Qd3 {[%clk 0:00:01]} 38... Qxc1 {[%clk
0:01:01.3]} 0-1

[Event "Live Chess"]
[Site "Chess.com"]
[Date "2023.05.21"]
[Round "-"]
[White "Singapourfeuj"]
[Black "tpm07"]
[Result "1-0"]
[WhiteElo "2176"]
[BlackElo "1951"]
[TimeControl "300"]
[EndTime "21:27:00 PDT"]
[Termination "Singapourfeuj won by checkmate"]

1. c4 {[%clk 0:04:57]} 1... e5 {[%clk 0:04:58.5]} 2. g3 {[%clk 0:04:53.8]} 2...
c6 {[%clk 0:04:56.4]} 3. Bg2 {[%clk 0:04:51.4]} 3... d5 {[%clk 0:04:55.5]} 4.
cxd5 {[%clk 0:04:50.5]} 4... cxd5 {[%clk 0:04:55.4]} 5. d4 {[%clk 0:04:49.4]}
5... e4 {[%clk 0:04:54.6]} 6. Nc3 {[%clk 0:04:47.8]} 6... Nc6 {[%clk 0:04:47.3]}
7. Nh3 {[%clk 0:04:42.4]} 7... Nf6 {[%clk 0:04:42.4]} 8. Bg5 {[%clk 0:04:39]}
8... Be7 {[%clk 0:04:39.5]} 9. Nf4 {[%clk 0:04:37.3]} 9... Be6 {[%clk
0:04:35.8]} 10. Nxe6 {[%clk 0:04:36]} 10... fxe6 {[%clk 0:04:34.6]} 11. O-O
{[%clk 0:04:34.6]} 11... O-O {[%clk 0:04:33.5]} 12. e3 {[%clk 0:04:31.9]} 12...
a6 {[%clk 0:04:23.6]} 13. f3 {[%clk 0:04:30.8]} 13... exf3 {[%clk 0:04:20.8]}
14. Rxf3 {[%clk 0:04:29.9]} 14... Nd7 {[%clk 0:04:13]} 15. Rxf8+ {[%clk
0:04:23.6]} 15... Qxf8 {[%clk 0:04:07.2]} 16. Bxe7 {[%clk 0:04:22.7]} 16... Qxe7
{[%clk 0:04:05.8]} 17. Bh3 {[%clk 0:04:11.6]} 17... Nf6 {[%clk 0:04:00.8]} 18.
Qe2 {[%clk 0:04:05.3]} 18... Re8 {[%clk 0:03:48.2]} 19. Bg2 {[%clk 0:04:01.3]}
19... Qb4 {[%clk 0:03:42.3]} 20. a3 {[%clk 0:03:59]} 20... Qb3 {[%clk
0:03:40.3]} 21. Rf1 {[%clk 0:03:56.6]} 21... Na5 {[%clk 0:03:38.5]} 22. e4
{[%clk 0:03:52.5]} 22... Qc4 {[%clk 0:03:14.7]} 23. Qe3 {[%clk 0:03:49]} 23...
Nb3 {[%clk 0:02:49.5]} 24. Ne2 {[%clk 0:03:38.2]} 24... Nxe4 {[%clk 0:02:13.9]}
25. Bxe4 {[%clk 0:03:34.9]} 25... dxe4 {[%clk 0:02:13.2]} 26. Qxe4 {[%clk
0:03:33.5]} 26... e5 {[%clk 0:02:12.4]} 27. Qxb7 {[%clk 0:03:14.6]} 27... Nd2
{[%clk 0:02:03.5]} 28. Rf2 {[%clk 0:03:04.1]} 28... exd4 {[%clk 0:02:02]} 29.
Nxd4 {[%clk 0:02:59.5]} 29... Ne4 {[%clk 0:01:28.2]} 30. Qd7 {[%clk 0:02:57.9]}
30... Rc8 {[%clk 0:01:03.8]} 31. Ne6 {[%clk 0:02:54.5]} 31... Qc1+ {[%clk
0:00:13]} 32. Kg2 {[%clk 0:02:52.1]} 32... Rc7 {[%clk 0:00:01.8]} 33. Rf8#
{[%clk 0:02:49]} 1-0

[Event "Live Chess"]
[Site "Chess.com"]
[Date "2023.05.21"]
[Round "-"]
[White "LutherSullivan"]
[Black "BostonStrangler"]
[Result "1-0"]
[WhiteElo "2201"]
[BlackElo "2054"]
[TimeControl "300"]
[EndTime "21:27:09 PDT"]
[Termination "LutherSullivan won on time"]

1. e4 {[%clk 0:04:58.9]} 1... c5 {[%clk 0:04:58.7]} 2. Nf3 {[%clk 0:04:56.5]}
2... g6 {[%clk 0:04:58.1]} 3. c3 {[%clk 0:04:56]} 3... Bg7 {[%clk 0:04:54.6]} 4.
d4 {[%clk 0:04:55.5]} 4... cxd4 {[%clk 0:04:54.2]} 5. cxd4 {[%clk 0:04:55.2]}
5... d5 {[%clk 0:04:53.7]} 6. e5 {[%clk 0:04:54.9]} 6... Bg4 {[%clk 0:04:51.5]}
7. Nbd2 {[%clk 0:04:52.4]} 7... Nc6 {[%clk 0:04:49.9]} 8. Bb5 {[%clk 0:04:49]}
8... Qd7 {[%clk 0:04:38.9]} 9. O-O {[%clk 0:04:44.4]} 9... a6 {[%clk 0:04:37.4]}
10. Bxc6 {[%clk 0:04:40.5]} 10... Qxc6 {[%clk 0:04:36.5]} 11. h3 {[%clk
0:04:36.9]} 11... Bxf3 {[%clk 0:04:34.7]} 12. Nxf3 {[%clk 0:04:35.7]} 12... e6
{[%clk 0:04:34]} 13. Bd2 {[%clk 0:04:31.8]} 13... Ne7 {[%clk 0:04:32.5]} 14. Bb4
{[%clk 0:04:28.7]} 14... Qd7 {[%clk 0:04:25.8]} 15. Rc1 {[%clk 0:04:25.6]} 15...
O-O {[%clk 0:04:24.5]} 16. Qb3 {[%clk 0:04:12.1]} 16... Rfc8 {[%clk 0:04:21.7]}
17. Bc5 {[%clk 0:03:59.1]} 17... Nc6 {[%clk 0:04:12.4]} 18. Qb6 {[%clk
0:03:48.5]} 18... Bf8 {[%clk 0:03:47.4]} 19. b4 {[%clk 0:03:43.4]} 19... Be7
{[%clk 0:03:37.5]} 20. Bxe7 {[%clk 0:03:25.6]} 20... Qxe7 {[%clk 0:03:31.1]} 21.
Rc5 {[%clk 0:03:24.1]} 21... Qc7 {[%clk 0:02:54.3]} 22. Qxc7 {[%clk 0:03:10.9]}
22... Rxc7 {[%clk 0:02:54.2]} 23. a4 {[%clk 0:03:05.9]} 23... Rac8 {[%clk
0:02:46.4]} 24. Rfc1 {[%clk 0:02:58.6]} 24... b6 {[%clk 0:02:24.3]} 25. R5c3
{[%clk 0:02:49.2]} 25... b5 {[%clk 0:01:58.3]} 26. axb5 {[%clk 0:02:41.7]} 26...
axb5 {[%clk 0:01:58.2]} 27. Rc5 {[%clk 0:02:26.2]} 27... Kf8 {[%clk 0:01:55.6]}
28. Kf1 {[%clk 0:02:22.1]} 28... Ke7 {[%clk 0:01:54.2]} 29. Rxb5 {[%clk
0:02:20.3]} 29... Kd7 {[%clk 0:01:52.4]} 30. Rb6 {[%clk 0:01:51.4]} 30... h5
{[%clk 0:01:16.1]} 31. b5 {[%clk 0:01:47.4]} 31... Na5 {[%clk 0:01:07]} 32. Rd6+
{[%clk 0:01:43.9]} 32... Ke7 {[%clk 0:01:05.4]} 33. Rxc7+ {[%clk 0:01:28.4]}
33... Rxc7 {[%clk 0:01:04.8]} 34. Ra6 {[%clk 0:01:18]} 34... Nc4 {[%clk
0:00:21.6]} 35. b6 {[%clk 0:01:10.3]} 35... Rd7 {[%clk 0:00:12]} 36. Ke2 {[%clk
0:01:06.7]} 36... Kd8 {[%clk 0:00:08.7]} 37. Ng5 {[%clk 0:01:03.8]} 37... Kc8
{[%clk 0:00:05.6]} 38. Ra8+ {[%clk 0:00:58.1]} 38... Kb7 {[%clk 0:00:03.9]} 39.
Ra7+ {[%clk 0:00:57.7]} 39... Kc6 {[%clk 0:00:03.1]} 40. Nxf7 {[%clk 0:00:46.9]}
40... Rxa7 {[%clk 0:00:00.7]} 41. bxa7 {[%clk 0:00:44.9]} 1-0

[Event "Live Chess"]
[Site "Chess.com"]
[Date "2023.05.21"]
[Round "-"]
[White "ViktorTheCoolBoy"]
[Black "Long1968"]
[Result "1-0"]
[WhiteElo "2477"]
[BlackElo "1060"]
[TimeControl "300"]
[EndTime "21:27:19 PDT"]
[Termination "ViktorTheCoolBoy won on time"]

1. e4 {[%clk 0:04:59.1]} 1... e6 {[%clk 0:04:56.9]} 2. d3 {[%clk 0:04:57.1]}
2... d5 {[%clk 0:04:53.5]} 3. Qe2 {[%clk 0:04:54.8]} 3... c5 {[%clk 0:04:44.8]}
4. Nf3 {[%clk 0:04:53.6]} 4... Nc6 {[%clk 0:04:43]} 5. g3 {[%clk 0:04:52.4]}
5... b6 {[%clk 0:04:34.6]} 6. Bg2 {[%clk 0:04:50.9]} 6... Bb7 {[%clk 0:04:32.1]}
7. O-O {[%clk 0:04:49.8]} 7... Nd4 {[%clk 0:04:25.8]} 8. Nxd4 {[%clk 0:04:47.8]}
8... cxd4 {[%clk 0:04:22.1]} 9. exd5 {[%clk 0:04:43.3]} 9... Bxd5 {[%clk
0:04:15.8]} 10. Bxd5 {[%clk 0:04:41.3]} 10... Qxd5 {[%clk 0:04:11.8]} 11. c4
{[%clk 0:04:40.4]} 11... Qd7 {[%clk 0:03:52.3]} 12. Qf3 {[%clk 0:04:36.2]} 12...
Rd8 {[%clk 0:03:42.7]} 13. Na3 {[%clk 0:04:32.3]} 13... a6 {[%clk 0:03:35.6]}
14. Nc2 {[%clk 0:04:28.3]} 14... Nf6 {[%clk 0:03:23.6]} 15. Bg5 {[%clk 0:04:26]}
15... Be7 {[%clk 0:03:20.4]} 16. Rfe1 {[%clk 0:04:23]} 16... O-O {[%clk
0:03:17.4]} 17. b4 {[%clk 0:04:20.4]} 17... h6 {[%clk 0:03:04.5]} 18. Bxf6
{[%clk 0:04:18.8]} 18... Bxf6 {[%clk 0:03:00.9]} 19. a4 {[%clk 0:04:18.3]} 19...
e5 {[%clk 0:02:51.5]} 20. a5 {[%clk 0:04:16.4]} 20... b5 {[%clk 0:02:29.6]} 21.
Na3 {[%clk 0:04:12.2]} 21... Be7 {[%clk 0:02:16.7]} 22. Rab1 {[%clk 0:04:07.8]}
22... f6 {[%clk 0:02:10.7]} 23. cxb5 {[%clk 0:04:05.5]} 23... axb5 {[%clk
0:02:03.1]} 24. Rec1 {[%clk 0:04:01.8]} 24... Rc8 {[%clk 0:01:55.2]} 25. Qd1
{[%clk 0:03:54.7]} 25... Rxc1 {[%clk 0:01:36.1]} 26. Qxc1 {[%clk 0:03:51.6]}
26... Rc8 {[%clk 0:01:31.6]} 27. Qb2 {[%clk 0:03:50.1]} 27... Rc3 {[%clk
0:01:22.2]} 28. Qa2+ {[%clk 0:03:35.2]} 28... Kf8 {[%clk 0:01:09.8]} 29. a6
{[%clk 0:03:32.3]} 29... Qa7 {[%clk 0:00:50.9]} 30. Nxb5 {[%clk 0:03:30.1]}
30... Qb6 {[%clk 0:00:24.7]} 31. Nxc3 {[%clk 0:03:25.7]} 31... dxc3 {[%clk
0:00:22.3]} 32. a7 {[%clk 0:03:23.8]} 32... c2 {[%clk 0:00:09.9]} 33. a8=Q+
{[%clk 0:03:22.3]} 33... Qd8 {[%clk 0:00:02]} 34. Qxd8+ {[%clk 0:03:20.1]} 1-0

[Event "Live Chess"]
[Site "Chess.com"]
[Date "2023.05.21"]
[Round "-"]
[White "Tushinskiy"]
[Black "Bakunian2022"]
[Result "1-0"]
[WhiteElo "2214"]
[BlackElo "761"]
[TimeControl "300"]
[EndTime "21:28:59 PDT"]
[Termination "Tushinskiy won by checkmate"]

1. d4 {[%clk 0:04:56.3]} 1... Nf6 {[%clk 0:04:53.7]} 2. c3 {[%clk 0:04:56.2]}
2... g6 {[%clk 0:04:51.3]} 3. Nf3 {[%clk 0:04:56.1]} 3... Bg7 {[%clk 0:04:50.5]}
4. Bf4 {[%clk 0:04:53.1]} 4... O-O {[%clk 0:04:48.6]} 5. Bg3 {[%clk 0:04:53]}
5... d6 {[%clk 0:04:46.4]} 6. Nbd2 {[%clk 0:04:52.9]} 6... Nbd7 {[%clk
0:04:42.2]} 7. e4 {[%clk 0:04:52.8]} 7... b6 {[%clk 0:04:39.9]} 8. Bd3 {[%clk
0:04:51.5]} 8... c5 {[%clk 0:04:38.3]} 9. d5 {[%clk 0:04:50.3]} 9... Nh5 {[%clk
0:04:23.2]} 10. Qe2 {[%clk 0:04:48.9]} 10... Nxg3 {[%clk 0:04:21.9]} 11. hxg3
{[%clk 0:04:48.8]} 11... f5 {[%clk 0:04:12.9]} 12. exf5 {[%clk 0:04:46.2]} 12...
gxf5 {[%clk 0:04:10.4]} 13. Ng5 {[%clk 0:04:31.9]} 13... Nf6 {[%clk 0:04:00.3]}
14. Ne6 {[%clk 0:04:30.8]} 14... Bxe6 {[%clk 0:03:56.6]} 15. Qxe6+ {[%clk
0:04:30.7]} 15... Kh8 {[%clk 0:03:53.1]} 16. Bxf5 {[%clk 0:04:30.1]} 16... a5
{[%clk 0:03:16.1]} 17. O-O-O {[%clk 0:04:28.5]} 17... a4 {[%clk 0:03:14.3]} 18.
Bxh7 {[%clk 0:04:26.6]} 18... Nxh7 {[%clk 0:03:07.5]} 19. Rxh7+ {[%clk
0:04:26.5]} 19... Kxh7 {[%clk 0:03:06.6]} 20. Rh1+ {[%clk 0:04:26.1]} 20... Bh6
{[%clk 0:02:58.2]} 21. Qxh6+ {[%clk 0:04:25.4]} 21... Kg8 {[%clk 0:02:53.7]} 22.
Qg6# {[%clk 0:04:25.3]} 1-0

[Event "Live Chess"]
[Site "Chess.com"]
[Date "2023.05.21"]
[Round "-"]
[White "BostonStrangler"]
[Black "Singapourfeuj"]
[Result "0-1"]
[WhiteElo "2048"]
[BlackElo "2181"]
[TimeControl "300"]
[EndTime "21:29:24 PDT"]
[Termination "Singapourfeuj won by resignation"]

1. e4 {[%clk 0:04:57.9]} 1... c5 {[%clk 0:04:58]} 2. Nc3 {[%clk 0:04:56.4]} 2...
Nc6 {[%clk 0:04:56.6]} 3. f4 {[%clk 0:04:54.1]} 3... e6 {[%clk 0:04:54.6]} 4.
Nf3 {[%clk 0:04:50.3]} 4... d5 {[%clk 0:04:53.5]} 5. exd5 {[%clk 0:04:49.4]}
5... exd5 {[%clk 0:04:51.1]} 6. d4 {[%clk 0:04:49.3]} 6... Nf6 {[%clk
0:04:45.2]} 7. Bc4 {[%clk 0:04:47.5]} 7... dxc4 {[%clk 0:04:42.4]} 8. d5 {[%clk
0:04:42.6]} 8... Nd4 {[%clk 0:04:41.3]} 9. Nxd4 {[%clk 0:04:39.7]} 9... cxd4
{[%clk 0:04:40.3]} 10. Qxd4 {[%clk 0:04:39.3]} 10... Bd6 {[%clk 0:04:36.2]} 11.
O-O {[%clk 0:04:37]} 11... O-O {[%clk 0:04:33.5]} 12. Qxc4 {[%clk 0:04:36.1]}
12... Bf5 {[%clk 0:04:31.3]} 13. Qb3 {[%clk 0:04:31.7]} 13... Qd7 {[%clk
0:04:25.4]} 14. Be3 {[%clk 0:04:28.6]} 14... Rfe8 {[%clk 0:04:23.8]} 15. Bd4
{[%clk 0:04:27.5]} 15... Ng4 {[%clk 0:04:15.1]} 16. h3 {[%clk 0:04:22.1]} 16...
Nh6 {[%clk 0:04:13.6]} 17. g4 {[%clk 0:04:12.1]} 17... Bxg4 {[%clk 0:04:12.1]}
18. hxg4 {[%clk 0:04:06.7]} 18... Qxg4+ {[%clk 0:04:09.4]} 19. Kh1 {[%clk
0:04:04.9]} 19... Qh3+ {[%clk 0:04:06.3]} 20. Kg1 {[%clk 0:04:03.3]} 20... Qg3+
{[%clk 0:04:04.3]} 21. Kh1 {[%clk 0:04:01.9]} 21... Ng4 {[%clk 0:04:00.1]} 0-1

[Event "Live Chess"]
[Site "Chess.com"]
[Date "2023.05.21"]
[Round "-"]
[White "tpm07"]
[Black "LutherSullivan"]
[Result "0-1"]
[WhiteElo "1948"]
[BlackElo "2205"]
[TimeControl "300"]
[EndTime "21:29:37 PDT"]
[Termination "LutherSullivan won by resignation"]

1. d4 {[%clk 0:04:57.4]} 1... Nf6 {[%clk 0:04:57.4]} 2. c4 {[%clk 0:04:56.7]}
2... g6 {[%clk 0:04:56.4]} 3. Nc3 {[%clk 0:04:54.5]} 3... d5 {[%clk 0:04:55.7]}
4. cxd5 {[%clk 0:04:52.4]} 4... Nxd5 {[%clk 0:04:54.3]} 5. e4 {[%clk 0:04:50.6]}
5... Nxc3 {[%clk 0:04:52.9]} 6. bxc3 {[%clk 0:04:50.5]} 6... Bg7 {[%clk
0:04:52.4]} 7. Nf3 {[%clk 0:04:48.3]} 7... c5 {[%clk 0:04:51.5]} 8. Be3 {[%clk
0:04:47.4]} 8... Qa5 {[%clk 0:04:49.7]} 9. Qd2 {[%clk 0:04:46.6]} 9... O-O
{[%clk 0:04:48.1]} 10. Rc1 {[%clk 0:04:41.8]} 10... Bg4 {[%clk 0:04:41.4]} 11.
Ne5 {[%clk 0:04:31.7]} 11... Bxe5 {[%clk 0:04:38.7]} 12. dxe5 {[%clk 0:04:30.4]}
12... Rd8 {[%clk 0:04:36.3]} 13. Qc2 {[%clk 0:04:24]} 13... Nc6 {[%clk
0:04:28.1]} 14. h3 {[%clk 0:04:17.5]} 14... Be6 {[%clk 0:04:25.7]} 15. f4 {[%clk
0:04:16]} 15... Nd4 {[%clk 0:04:23.4]} 16. Qf2 {[%clk 0:04:03.3]} 16... Bxa2
{[%clk 0:04:19.6]} 17. Be2 {[%clk 0:03:52.5]} 17... Nb3 {[%clk 0:04:12.9]} 18.
Rc2 {[%clk 0:03:43.3]} 18... Bb1 {[%clk 0:04:09.9]} 19. Rb2 {[%clk 0:03:42.3]}
19... Qxc3+ {[%clk 0:04:05.4]} 0-1